bitfinex-derivatives/quotes_ETHF0:USTF0_20250612
["timestamp","ask_amount","ask_price","bid_price","bid_amount"]
[1749720477762,0.72554,2756.1,2756.0,62.55055]
[1749720478158,0.72554,2756.1,2756.0,21.75055]
[1749720478461,0.72554,2756.1,2756.0,21.75057]
[1749720478657,0.6406,2756.3,2756.0,21.026]
[1749720478658,2.45437,2756.3,2756.0,21.026]
[1749720478855,0.7256,2755.9,2755.8,1.31562]
[1749720479055,0.7256,2755.9,2755.8,4.346]
[1749720479260,0.7256,2755.9,2755.8,21.028]
[1749720480058,1.3325,2755.9,2755.8,21.028]
[1749720481758,1.3325,2755.9,2755.8,21.75362]
[1749720481963,3.21321551,2756.4,2755.8,21.028]
[1749720482263,1.33239,2756.3,2756.2,0.72552]
[1749720482563,1.33239,2756.3,2756.2,21.019]
[1749720482758,1.33239,2756.3,2756.2,21.74452]
[1749720482959,1.33239,2756.3,2756.2,21.019]
[1749720483366,0.72557,2756.0,2755.9,1.3123]
[1749720483565,0.72557,2756.0,2755.9,22.3333]
[1749720483866,0.72557,2756.0,2755.9,1.3123]
[1749720484054,0.72557,2756.0,2755.9,0.7256]
[1749720484260,0.72557,2756.0,2755.9,21.018]
[1749720485764,0.72557,2756.0,2755.9,21.7436]
[1749720485964,0.72557,2756.0,2755.9,21.018]
[1749720486665,0.72557,2756.0,2755.9,21.7436]
[1749720486965,0.72555,2756.1,2756.0,0.72553]
[1749720490265,0.72557,2756.0,2755.9,22.37418]
[1749720490463,0.72557,2756.0,2755.9,21.6486]
[1749720490966,1.81381,2756.2,2755.6,4.5029]
[1749720491168,0.72562,2755.8,2755.7,21.74463]
[1749720492864,1.32058,2756.0,2755.9,0.7256]
[1749720493068,0.72556,2756.1,2756.0,0.72557]
[1749720493661,0.7256,2756.0,2755.9,0.72559]
[1749720493864,0.7256,2755.9,2755.8,0.7876072]
[1749720494057,0.7256,2755.9,2755.8,21.8056072]
[1749720494265,0.72559,2756.0,2755.9,0.72557]
[1749720495464,2.44562,2756.2,2755.8,21.74362]
[1749720495465,0.7256,2755.9,2755.8,21.74362]
[1749720495661,1.81396,2756.0,2755.6,0.5929]
[1749720495864,1.33452,2755.8,2755.7,21.72465]
[1749720498472,1.33452,2755.8,2755.7,5.05165]
[1749720498770,0.72575,2755.3,2755.2,0.00543971]
[1749720499274,2.09738269,2755.3,2755.2,0.00543971]
[1749720499578,0.72587,2754.9,2754.7,19.8938]
[1749720499871,3.93354,2755.4,2755.3,0.72575]
[1749720500074,3.93354,2755.4,2755.3,21.018]
[1749720500678,3.93354,2755.4,2755.3,21.74375]
[1749720500976,3.93354,2755.4,2755.3,21.018]
[1749720501474,3.93354,2755.4,2755.3,21.74375]
[1749720502474,3.93354,2755.4,2755.3,21.018]
[1749720502772,3.2078,2755.4,2755.3,21.74375]
[1749720502972,0.72569,2755.6,2755.5,0.72569]
[1749720503575,0.72572,2755.5,2755.4,0.72572]
[1749720503776,0.72572,2755.5,2755.4,0.72571]
[1749720503968,0.72572,2755.5,2755.4,21.75072]
[1749720504174,0.7257,2755.5,2755.4,21.75071]
[1749720505673,0.72574,2755.4,2755.3,0.72573]
[1749720505876,0.72574,2755.4,2755.3,21.75073]
[1749720506477,0.72575,2755.3,2755.2,0.72576]
[1749720506672,0.72575,2755.3,2755.2,21.024]
[1749720506877,0.72578,2755.2,2755.1,0.00543971]
[1749720507078,1.37578,2755.2,2755.1,0.00543971]
[1749720507274,4.58358,2755.2,2755.1,0.00543971]
[1749720507975,9.58358,2755.2,2755.1,0.00543971]
[1749720508374,0.72594,2754.6,2754.5,17.3602]
[1749720508570,0.72594,2754.6,2754.5,0.6492]
[1749720508772,0.72596,2754.5,2754.4,4.327]
[1749720509580,1.92976,2754.5,2754.4,4.327]
[1749720510081,3.12866,2754.5,2754.4,4.327]
[1749720512572,3.12866,2754.5,2754.2,0.00543971]
[1749720512573,0.72602,2754.3,2754.2,0.00543971]
[1749720514187,0.72601,2754.4,2754.3,0.72601]
[1749720514381,1.2038,2754.5,2754.4,0.7880072]
[1749720514382,1.31186,2754.5,2754.4,0.7880072]
[1749720514678,1.31186,2754.5,2754.4,0.0620172]
[1749720515784,1.31186,2754.5,2754.4,0.7880072]
[1749720516682,0.72595,2754.6,2754.5,0.72595]
[1749720516876,0.00543971,2754.7,2754.5,4.328]
[1749720517081,0.73135971,2754.7,2754.6,17.43794]
[1749720517586,0.73135971,2754.7,2754.6,16.712]
[1749720517788,0.73135971,2754.7,2754.6,17.43794]
[1749720518591,0.00543971,2754.7,2754.6,17.43794]
[1749720518898,0.72582,2755.1,2755.0,0.72582]
[1749720519084,0.72582,2755.1,2755.0,21.76482]
[1749720519289,3.93359,2755.2,2755.1,0.72581]
[1749720519490,3.2078,2755.2,2755.1,0.72581]
[1749720519689,3.2078,2755.2,2755.0,21.76482]
[1749720519987,3.93358,2755.2,2755.1,21.042]
[1749720520188,5.02226,2755.2,2754.5,3.2078]
[1749720520394,1.81459,2755.0,2754.6,21.044]
[1749720520599,0.72591,2754.7,2754.6,21.044]
[1749720520796,0.72591,2754.7,2754.6,21.054]
[1749720522503,0.72591,2754.7,2754.6,21.77994]
[1749720522898,0.72591,2754.7,2754.6,21.054]
[1749720525004,0.72596,2754.5,2754.4,1.3805972]
[1749720525303,0.72596,2754.5,2754.4,22.4235972]
[1749720526001,0.72596,2754.5,2754.4,21.6976172]
[1749720526200,0.72596,2754.5,2754.4,0.0620172]
[1749720526408,0.72596,2754.5,2754.4,4.4110172]
[1749720526702,0.72596,2754.5,2754.4,21.1220172]
[1749720527901,0.72596,2754.5,2754.4,4.4110172]
[1749720528107,0.72596,2754.5,2754.4,21.1190172]
[1749720532804,0.72596,2754.5,2754.4,4.4110172]
[1749720533009,0.72596,2754.5,2754.4,21.1050172]
[1749720541513,0.72596,2754.5,2754.4,0.0620172]
[1749720541818,0.72612,2753.9,2753.8,4.349]
[1749720542019,0.72618,2753.7,2753.6,4.349]
[1749720542218,0.72618,2753.7,2753.6,21.033]
[1749720543010,0.72618,2753.7,2753.6,4.349]
[1749720543215,0.72618,2753.7,2753.6,21.035]
[1749720543416,0.72618,2753.7,2753.6,4.349]
[1749720545510,1.98748,2753.7,2753.6,4.349]
[1749720545713,0.72623,2753.5,2753.4,4.35543971]
[1749720545918,0.72623,2753.5,2753.4,21.04043971]
[1749720549519,0.72623,2753.5,2753.4,4.35543971]
[1749720549821,0.72623,2753.5,2753.4,21.03243971]
[1749720550222,0.65353971,2753.9,2753.4,21.03243971]
[1749720550419,2.46888971,2753.9,2753.4,21.03243971]
[1749720550622,0.7262,2753.6,2753.5,2.54752]
[1749720552024,0.65353971,2753.9,2753.5,1.8213]
[1749720552224,0.7262,2753.6,2753.5,2.54752]
[1749720552624,0.7262,2753.6,2753.5,1.8213]
[1749720553323,0.7262,2753.6,2753.5,2.54753]
[1749720553719,0.65353971,2753.9,2753.5,1.8213]
[1749720553925,0.00543971,2753.9,2753.8,0.72615]
[1749720554123,0.00543971,2753.9,2753.8,21.75615]
[1749720554323,0.73155971,2753.9,2753.8,21.75615]
[1749720554729,0.00543971,2753.9,2753.8,21.75615]
[1749720556426,0.00543971,2753.9,2753.8,24.96395]
[1749720559329,0.72604,2754.3,2754.2,0.72602]
[1749720559623,3.93377,2754.5,2754.4,0.72599]
[1749720560028,3.2078,2754.5,2754.4,0.72599]
[1749720560224,3.93376,2754.5,2754.4,1.2495]
[1749720560431,0.72599,2754.4,2754.3,1.3508]
[1749720560619,0.00543971,2754.7,2754.3,0.6248]
[1749720560826,1.81403,2755.9,2754.6,5.02265]
[1749720561125,1.1844,2755.8,2755.2,3.2078]
[1749720561531,1.81419,2755.6,2754.8,4.4152]
[1749720561829,0.72586,2754.9,2754.8,19.9988]
[1749720564030,1.255,2755.3,2754.8,19.9988]
[1749720564227,0.72583,2755.0,2754.8,20.72467]
[1749720564431,0.72585,2755.0,2754.8,20.72467]
[1749720564632,1.255,2755.3,2754.8,19.9988]
[1749720564930,0.72585,2755.0,2754.9,0.72586]
[1749720565329,0.72585,2755.0,2754.8,20.72467]
[1749720565526,0.72577,2755.3,2754.8,19.9988]
[1749720565724,0.72574,2755.4,2755.1,3.2078]
[1749720565931,0.72575,2755.3,2755.2,5.05176]
[1749720566124,0.72575,2755.3,2755.2,4.326]
[1749720566331,0.72575,2755.3,2755.2,5.05178]
[1749720567733,0.72575,2755.3,2755.2,4.326]
[1749720568435,0.72575,2755.3,2755.2,5.05178]
[1749720569736,0.72575,2755.3,2755.2,5.05177]
[1749720570324,0.72575,2755.3,2755.2,4.326]
[1749720570530,0.72575,2755.3,2755.2,5.05178]
[1749720572836,0.72574,2755.4,2755.3,0.72573]
[1749720573133,0.72574,2755.4,2755.3,17.48173]
[1749720573536,0.72574,2755.4,2755.3,16.756]
[1749720574437,0.72574,2755.4,2755.3,17.48175]
[1749720574936,0.72574,2755.4,2755.3,16.756]
[1749720575434,0.72574,2755.4,2755.3,17.48175]
[1749720577742,0.72574,2755.4,2755.3,16.756]
[1749720578035,0.72574,2755.4,2755.3,17.48175]
[1749720578938,0.72575,2755.3,2755.2,0.0620172]
[1749720579135,2.00645,2755.3,2755.2,0.0620172]
[1749720579438,0.72586,2754.9,2754.8,3.93367]
[1749720579737,0.72586,2754.9,2754.8,3.2078]
[1749720580138,0.72586,2754.9,2754.8,19.9488]
[1749720582442,0.72586,2754.9,2754.8,20.67468]
[1749720582634,1.31375,2755.0,2754.9,0.72586]
[1749720582939,1.31375,2755.0,2754.9,17.46086]
[1749720584138,1.31375,2755.0,2754.9,16.735]
[1749720585342,1.31375,2755.0,2754.9,17.46086]
[1749720586041,0.5879,2755.0,2754.9,17.46086]
[1749720586434,4.4826,2755.4,2755.1,0.72579]
[1749720586639,1.35205,2755.3,2755.2,0.0620172]
[1749720587945,1.35205,2755.3,2755.2,0.7877972]
[1749720588339,1.35205,2755.3,2755.2,0.0620172]
[1749720589647,0.72578,2755.2,2755.1,3.2078]
[1749720592542,0.72578,2755.2,2755.1,3.93361]
[1749720592748,0.72578,2755.2,2755.1,3.2078]
[1749720593349,0.72578,2755.2,2755.1,3.93361]
[1749720594148,0.72578,2755.2,2755.1,3.2078]
[1749720594447,0.72581,2755.1,2755.0,1.37021]
[1749720595450,0.6263,2755.3,2755.1,0.72578]
[1749720595451,0.72579,2755.2,2755.1,0.72578]
[1749720596244,0.6263,2755.3,2755.2,0.72578]
[1749720596452,0.6263,2755.3,2755.2,5.08278]
[1749720597249,1.35207,2755.3,2755.2,4.357]
[1749720597839,1.35207,2755.3,2755.2,5.08278]
[1749720599046,1.35207,2755.3,2755.2,4.357]
[1749720599349,1.35207,2755.3,2755.2,5.08278]
[1749720599746,1.35207,2755.3,2755.2,4.357]
[1749720599946,1.35207,2755.3,2755.2,5.08278]
[1749720600147,1.35207,2755.3,2755.2,4.357]
[1749720600346,0.72581,2755.1,2755.0,1.37021]
[1749720600548,0.72581,2755.1,2755.0,22.42221]
[1749720601254,0.72581,2755.1,2755.0,21.6964]
[1749720601447,0.72581,2755.1,2755.0,22.42223]
[1749720601751,0.7258,2755.2,2755.1,0.72579]
[1749720602053,0.7258,2755.2,2755.1,21.77179]
[1749720602652,0.7258,2755.2,2755.1,21.046]
[1749720603947,0.7258,2755.2,2755.1,21.046]
[1749720604150,0.7258,2755.2,2755.1,21.77181]
[1749720605748,0.7258,2755.2,2755.1,23.03291]
[1749720606253,0.72575,2755.4,2755.3,0.72573]
[1749720606454,0.72573,2755.4,2755.3,21.036]
[1749720606754,1.92613,2755.4,2755.3,21.036]
[1749720608452,0.72573,2755.4,2755.3,21.036]
[1749720608654,0.00543971,2755.5,2755.4,0.72573]
[1749720609052,3.2078,2756.1,2755.9,0.72558]
[1749720609257,0.7256,2755.9,2755.8,5.0826]
[1749720609454,0.7256,2755.9,2755.8,21.7716]
[1749720609955,3.2078,2756.1,2755.9,0.72558]
[1749720609956,0.72559,2756.0,2755.9,0.72558]
[1749720610557,1.01579,2756.0,2755.9,0.72558]
[1749720611054,0.2902,2756.0,2755.9,17.41359]
[1749720611353,0.2902,2756.0,2755.9,19.23719]
[1749720611553,0.544,2756.1,2756.0,0.72557]
[1749720611746,3.2078,2756.5,2756.1,0.72554]
[1749720611946,3.2078,2756.9,2756.8,0.72536]
[1749720612151,3.93313,2756.9,2756.8,21.78136]
[1749720612350,3.93313,2756.9,2756.8,21.056]
[1749720612557,3.93313,2756.9,2756.8,21.78136]
[1749720613245,3.93313,2756.9,2756.8,21.056]
[1749720613648,3.93313,2756.9,2756.8,21.78136]
[1749720613948,3.93313,2756.9,2756.8,21.056]
[1749720614150,3.93313,2756.9,2756.8,21.78136]
[1749720614952,3.8081,2757.3,2757.2,0.72525]
[1749720615154,0.72527,2757.2,2757.1,0.72528]
[1749720615350,0.72527,2757.2,2757.1,5.08028]
[1749720616252,4.53335,2757.3,2757.2,0.72525]
[1749720616459,3.2078,2757.3,2757.2,0.72525]
[1749720616952,3.2078,2757.3,2757.2,2.54635]
[1749720617154,3.2078,2757.7,2757.6,0.72515]
[1749720617360,3.2078,2758.0,2757.6,21.036]
[1749720617553,0.7251,2757.8,2757.7,0.7251]
[1749720617759,0.72512,2757.7,2757.6,21.76113]
[1749720618455,3.93287,2758.0,2757.6,21.036]
[1749720618662,0.72507,2758.0,2757.9,0.72507]
[1749720618858,3.2078,2758.3,2757.6,22.84886]
[1749720619062,3.2078,2758.3,2757.7,1.2286]
[1749720619266,0.72504,2758.1,2758.0,0.72504]
[1749720619466,0.72504,2758.1,2758.0,5.06504]
[1749720619669,0.72504,2758.1,2758.0,4.34]
[1749720620066,0.72504,2758.1,2758.0,5.06504]
[1749720620268,0.72501,2758.2,2758.0,4.34]
[1749720620469,0.72501,2758.2,2758.1,17.43602]
[1749720620671,0.72501,2758.2,2758.1,16.711]
[1749720621771,0.72501,2758.2,2758.1,17.43602]
[1749720622067,3.93278,2758.3,2758.2,0.72499]
[1749720622268,3.2078,2758.3,2758.1,16.711]
[1749720622473,0.72498,2758.3,2758.2,0.72499]
[1749720622674,0.72499,2758.2,2758.1,17.43601]
[1749720622967,4.4427,2758.6,2758.5,0.72491]
[1749720622968,3.9327,2758.6,2758.5,0.72491]
[1749720623162,3.2078,2758.6,2758.1,1.2198]
[1749720623366,0.72502,2758.1,2758.0,0.00543971]
[1749720623562,0.72502,2758.1,2758.0,21.04543971]
[1749720624373,0.72502,2758.1,2758.0,0.00543971]
[1749720624571,5.72502,2758.1,2758.0,9.71e-06]
[1749720626070,7.61852,2758.1,2758.0,9.71e-06]
[1749720627466,2.61852,2758.1,2758.0,9.71e-06]
[1749720629071,7.61852,2758.1,2758.0,9.71e-06]
[1749720630874,9.03095475,2758.1,2758.0,9.71e-06]
[1749720631176,0.72533,2756.9,2756.8,4.338]
[1749720631474,5.02107,2757.0,2756.6,4.338]
[1749720631779,0.72538,2756.7,2756.6,4.338]
[1749720633284,0.72544,2756.5,2756.4,26.27543971]
[1749720633582,0.72544,2756.5,2756.4,4.34443971]
[1749720635282,0.72544,2756.5,2756.4,0.00543971]
[1749720639286,3.2078,2756.7,2756.6,0.72541]
[1749720639789,0.00543971,2756.9,2756.8,0.72536]
[1749720639989,0.00543971,2756.9,2756.8,21.79636]
[1749720640190,0.73076971,2756.9,2756.8,21.79636]
[1749720640692,0.73076971,2756.9,2756.8,21.071]
[1749720641189,0.73076971,2756.9,2756.8,21.79636]
[1749720641392,0.73076971,2756.9,2756.8,21.071]
[1749720641784,0.73076971,2756.9,2756.8,23.03826]
[1749720641981,0.72541,2756.6,2756.5,3.2078]
[1749720642188,0.72541,2756.6,2756.5,24.2848]
[1749720642392,0.72541,2756.6,2756.5,25.01024]
[1749720642894,0.72539,2756.7,2756.6,0.72539]
[1749720643091,0.72541,2756.6,2756.5,26.86192]
[1749720644296,0.72541,2756.6,2756.5,26.1365]
[1749720646298,0.72541,2756.6,2756.5,5.0595]
[1749720646497,0.72541,2756.6,2756.5,26.86394]
[1749720646797,0.72541,2756.6,2756.5,26.1385]
[1749720646990,0.72541,2756.6,2756.5,26.86394]
[1749720648195,0.72541,2756.7,2756.6,0.72539]
[1749720648390,0.72541,2756.6,2756.5,26.86391]
[1749720648798,0.72541,2756.6,2756.5,26.1385]
[1749720649601,0.72541,2756.6,2756.5,26.9259572]
[1749720650289,0.72539,2756.8,2756.7,0.72536]
[1749720650999,0.72541,2756.7,2756.6,0.72539]
[1749720652300,0.72538,2756.8,2756.7,0.72536]
[1749720653297,0.00543971,2756.9,2756.8,0.72536]
[1749720655598,0.73076971,2756.9,2756.8,0.72536]
[1749720655994,0.73076971,2756.9,2756.8,21.81136]
[1749720656198,0.00543971,2756.9,2756.8,21.81136]
[1749720656903,0.00543971,2756.9,2756.8,25.01916]
[1749720660410,1.2357,2757.7,2757.2,1.81313]
[1749720660605,1.2357,2757.7,2757.3,26.0845]
[1749720660802,1.2357,2757.7,2757.3,3.8267]
[1749720661099,0.72535,2757.0,2756.9,0.72533]
[1749720661298,0.72536,2756.9,2756.8,4.366]
[1749720661497,0.72536,2756.9,2756.8,21.082]
[1749720661697,0.72536,2756.9,2756.8,4.366]
[1749720662107,0.72536,2756.9,2756.8,21.104]
[1749720662499,0.72536,2756.8,2756.7,3.2078]
[1749720662700,1.90246,2756.8,2756.7,24.3118]
[1749720663196,1.90246,2756.8,2756.7,7.5738]
[1749720663405,1.90246,2756.8,2756.7,24.3088]
[1749720663800,1.90246,2756.8,2756.7,4.366]
[1749720663997,1.90246,2756.8,2756.7,21.101]
[1749720664208,0.72541,2756.6,2756.5,21.936]
[1749720664411,0.72541,2756.6,2756.5,43.034]
[1749720667110,0.72541,2756.6,2756.5,4.366]
[1749720667307,0.72541,2756.6,2756.5,21.089]
[1749720668311,0.72541,2756.6,2756.5,21.087]
[1749720668812,0.72544,2756.5,2756.4,0.00543971]
[1749720669009,1.31644,2756.5,2756.4,21.09243971]
[1749720669611,2.61124,2756.5,2756.4,21.09243971]
[1749720672314,2.61124,2756.5,2756.4,4.37143971]
[1749720672513,5.81904,2756.5,2756.4,21.08543971]
[1749720672715,5.81904,2756.5,2756.4,4.37143971]
[1749720672920,5.81904,2756.5,2756.4,21.08343971]
[1749720675321,5.81904,2756.5,2756.4,4.37143971]
[1749720679124,5.81904,2756.5,2756.4,4.43345691]
[1749720682323,5.81904,2756.5,2756.4,0.00543971]
[1749720683423,5.81904,2756.5,2756.4,0.06745691]
[1749720684327,5.81904,2756.5,2756.4,0.00543971]
[1749720685228,5.81904,2756.5,2756.4,0.06745691]
[1749720686427,5.81904,2756.5,2756.4,0.00543971]
[1749720687227,5.81904,2756.5,2756.4,0.06745691]
[1749720688221,5.81904,2756.5,2756.4,0.00543971]
[1749720688935,4.52424,2756.5,2756.4,0.00543971]
[1749720691222,3.93324,2756.5,2756.4,0.00543971]
[1749720691429,3.2078,2756.8,2756.4,2.54495691]
[1749720691925,0.72541,2756.7,2756.6,0.7254]
[1749720692126,0.72541,2756.7,2756.4,2.54495691]
[1749720692127,0.72543,2756.6,2756.5,0.72542]
[1749720692426,0.72541,2756.6,2756.5,1.90983]
[1749720692817,3.2078,2756.8,2756.5,1.1844]
[1749720693024,3.2078,2756.8,2756.7,0.72539]
[1749720693230,3.2078,2757.5,2756.7,5.06739]
[1749720693427,0.72531,2757.1,2757.0,3.9331]
[1749720693630,0.72527,2757.2,2757.1,0.72526]
[1749720693828,0.72527,2757.2,2757.1,2.52506]
[1749720694126,0.72525,2757.3,2757.2,0.72524]
[1749720694327,0.72525,2757.3,2757.2,1.1898]
[1749720695833,0.72525,2757.3,2757.2,1.91505]
[1749720696231,0.72525,2757.3,2757.2,1.1898]
[1749720698726,0.72521,2757.4,2757.3,0.7252]
[1749720699533,0.72523,2757.3,2757.2,1.91504]
[1749720699831,0.72522,2757.4,2757.3,0.72519]
[1749720700128,0.72518,2757.6,2757.5,0.72516]
[1749720700724,0.72518,2757.6,2757.5,2.50686]
[1749720700925,0.72515,2757.7,2757.6,0.72513]
[1749720701326,0.72515,2757.6,2757.5,1.7817]
[1749720702335,0.72515,2757.6,2757.5,2.50688]
[1749720702630,0.72515,2757.6,2757.5,1.7817]
[1749720702834,0.72515,2757.6,2757.5,2.50688]
[1749720703533,0.72515,2757.7,2757.6,0.72512]
[1749720704033,0.72515,2757.6,2757.5,2.50686]
[1749720704230,0.72515,2757.6,2757.5,1.7817]
[1749720705034,0.72515,2757.6,2757.5,2.50688]
[1749720705634,0.72515,2757.6,2757.5,2.50687]
[1749720705832,0.72513,2757.7,2757.6,0.72512]
[1749720706035,0.72515,2757.6,2757.5,2.50687]
[1749720707735,0.72515,2757.6,2757.5,2.50688]
[1749720708832,0.72515,2757.6,2757.3,3.2078]
[1749720708833,0.7252,2757.4,2757.3,3.2078]
[1749720709035,0.72525,2757.2,2757.1,0.61]
[1749720709236,0.72525,2757.2,2757.1,4.34]
[1749720709438,0.72528,2757.1,2757.0,0.72529]
[1749720709735,0.72528,2757.1,2757.0,21.69029]
[1749720709933,0.72527,2757.2,2757.1,0.72525]
[1749720711540,0.6222,2757.3,2757.0,22.1848]
[1749720711738,1.55928,2757.2,2757.1,0.72526]
[1749720712539,0.834,2757.2,2757.1,0.72526]
[1749720713142,1.55925,2757.2,2757.1,0.72526]
[1749720713535,1.55925,2757.2,2757.1,21.68626]
[1749720714042,1.55925,2757.2,2757.1,0.72526]
[1749720714243,1.55925,2757.2,2757.1,21.68626]
[1749720714641,0.834,2757.2,2757.1,21.68626]
[1749720721439,0.834,2757.2,2757.1,5.04226]
[1749720721635,1.55925,2757.2,2757.1,20.96]
[1749720721840,0.72531,2757.0,2756.9,3.2078]
[1749720722041,0.72531,2757.0,2756.9,19.8508]
[1749720722243,0.72533,2756.9,2756.8,4.317]
[1749720722552,2.57813,2756.9,2756.8,20.96]
[1749720723148,2.57813,2756.9,2756.7,21.934]
[1749720723149,0.72536,2756.8,2756.7,22.65938]
[1749720723446,0.72536,2756.8,2756.7,21.934]
[1749720723648,2.64436,2756.8,2756.7,42.894]
[1749720724046,2.64436,2756.8,2756.7,43.61939]
[1749720724548,2.64436,2756.8,2756.7,26.97639]
[1749720724747,2.64436,2756.8,2756.7,43.61939]
[1749720725041,0.6369,2756.9,2756.8,0.72536]
[1749720725844,3.2078,2757.1,2757.0,0.72531]
[1749720726039,0.834,2757.2,2757.1,0.72528]
[1749720726247,1.55925,2757.2,2757.1,5.04228]
[1749720727751,0.834,2757.2,2756.7,22.65936]
[1749720727950,3.04972,2757.1,2756.8,20.961]
[1749720728150,0.72533,2756.9,2756.8,20.961]
[1749720728453,0.72536,2756.8,2756.7,21.934]
[1749720728652,3.17576,2756.8,2756.7,42.895]
[1749720730347,3.17576,2756.8,2756.7,20.961]
[1749720731146,3.17576,2756.8,2756.7,21.68639]
[1749720731341,1.93926,2756.8,2756.7,21.68639]
[1749720731542,1.2139,2756.8,2756.7,21.69239]
[1749720731952,0.5938,2756.8,2756.7,21.69239]
[1749720732352,1.31916,2756.8,2756.7,21.69239]
[1749720732750,0.5938,2756.8,2756.7,21.69239]
[1749720733353,1.31916,2756.8,2756.7,21.69239]
[1749720733657,0.5938,2756.8,2756.7,21.69239]
[1749720734554,1.34,2757.1,2757.0,0.72531]
[1749720734749,1.9257,2757.1,2757.0,17.37031]
[1749720734949,1.9257,2757.1,2757.0,16.645]
[1749720735853,1.9257,2757.1,2757.0,17.37031]
[1749720736559,2.2158,2757.1,2757.0,17.37031]
[1749720736750,0.2901,2757.1,2757.0,17.37031]
[1749720736951,0.2901,2757.1,2757.0,20.57811]
[1749720738557,1.01538,2757.1,2757.0,20.57811]
[1749720738750,0.2901,2757.1,2757.0,20.57811]
[1749720739353,1.01538,2757.1,2757.0,20.57811]
[1749720739553,0.2901,2757.1,2757.0,20.57811]
[1749720739854,1.01538,2757.1,2757.0,20.57811]
[1749720740553,0.2901,2757.1,2757.0,20.57811]
[1749720740752,1.01538,2757.1,2757.0,20.57811]
[1749720741360,0.2901,2757.1,2757.0,20.57811]
[1749720742759,1.01538,2757.1,2757.0,20.57811]
[1749720743153,0.72531,2757.0,2756.9,0.72532]
[1749720743458,0.72531,2757.0,2756.9,21.68532]
[1749720743853,1.63459,2757.1,2757.0,0.72531]
[1749720745056,0.9093,2757.1,2757.0,0.72531]
[1749720745360,1.63458,2757.1,2757.0,3.93311]
[1749720746456,0.2901,2757.1,2757.0,3.93311]
[1749720746655,0.72518,2757.6,2757.5,0.72515]
[1749720746859,0.72518,2757.6,2757.5,20.959]
[1749720750868,0.72518,2757.6,2757.5,21.68418]
[1749720753270,0.72518,2757.6,2757.5,20.959]
[1749720756164,0.72518,2757.6,2757.5,21.68418]
[1749720756366,0.72518,2757.6,2757.5,20.959]
[1749720757774,0.72518,2757.6,2757.5,4.315]
[1749720758070,0.72518,2757.6,2757.5,20.957]
[1749720759163,1.96748,2757.6,2757.5,20.957]
[1749720761080,3.41792299,2757.6,2757.5,20.957]
[1749720761780,3.41792299,2757.6,2757.5,4.315]
[1749720761968,0.72525,2757.2,2757.1,4.314]
[1749720762279,0.72536,2756.8,2756.7,3.2078]
[1749720762479,0.72536,2756.8,2756.7,24.88919]
[1749720762972,0.72535,2756.9,2756.8,0.72533]
[1749720763373,0.72535,2756.9,2756.8,0.7873472]
[1749720764479,0.72535,2756.9,2756.8,0.72533]
[1749720764673,0.6128,2757.0,2756.7,24.1638]
[1749720764873,0.72536,2756.9,2756.8,0.72534]
[1749720767590,0.72536,2756.8,2756.7,24.9511872]
[1749720767982,0.72536,2756.8,2756.7,7.5838172]
[1749720768181,0.72536,2756.8,2756.7,24.2268172]
[1749720768689,0.72536,2756.8,2756.7,24.89019]
[1749720774591,0.72536,2756.8,2756.7,7.5218]
[1749720774994,0.72536,2756.8,2756.7,20.957]
[1749720775392,0.72544,2756.5,2756.4,5.04488971]
[1749720775696,0.72544,2756.5,2756.4,21.68788971]
[1749720777196,0.72544,2756.5,2756.4,20.96243971]
[1749720777497,0.72544,2756.5,2756.4,21.68789971]
[1749720779801,1.36503,2756.6,2756.5,0.72544]
[1749720780305,0.72541,2756.7,2756.6,0.72541]
[1749720780492,1.35348,2756.8,2756.7,0.72539]
[1749720780689,0.72536,2756.8,2756.7,17.36937]
[1749720781199,0.72536,2756.8,2756.7,16.644]
[1749720781699,1.93726,2756.8,2756.7,16.644]
[1749720783402,3.2078,2756.9,2756.7,16.644]
[1749720783603,3.2078,2756.9,2756.7,17.36937]
[1749720783604,0.72536,2756.8,2756.7,17.36937]
[1749720784202,0.72536,2756.8,2756.7,16.644]
[1749720784399,0.72541,2756.6,2756.5,5.03941]
[1749720784594,0.72541,2756.6,2756.5,21.68341]
[1749720785501,0.72536,2756.9,2756.8,0.72534]
[1749720785902,0.72544,2756.5,2756.4,0.73088971]
[1749720786103,0.72544,2756.5,2756.4,21.68888971]
[1749720786701,0.72544,2756.5,2756.4,20.96343971]
[1749720787103,0.72544,2756.5,2756.4,4.31943971]
[1749720787402,0.72544,2756.5,2756.4,20.96343971]
[1749720787801,0.72544,2756.5,2756.4,0.00543971]
[1749720788099,5.02122,2756.8,2756.4,0.00543971]
[1749720788100,3.2078,2756.8,2756.7,0.72539]
[1749720788307,0.72536,2756.8,2756.7,5.03939]
[1749720788605,0.72535,2756.9,2756.8,0.72534]
[1749720788796,0.6022,2757.0,2756.9,0.72533]
[1749720789002,0.6022,2757.0,2756.9,0.72532]
[1749720789003,0.72533,2757.0,2756.9,0.72532]
[1749720789305,0.72533,2756.9,2756.8,17.96564]
[1749720790908,1.81329,2757.0,2756.5,0.72543]
[1749720791210,0.72544,2756.5,2756.4,7.52823971]
[1749720791509,0.72544,2756.5,2756.4,24.17223971]
[1749720792203,0.72544,2756.5,2756.4,7.52823971]
[1749720792406,0.72544,2756.5,2756.4,24.17123971]
[1749720793400,0.72544,2756.5,2756.4,20.96343971]
[1749720797112,0.72544,2756.5,2756.4,4.32043971]